bitfinex/quotes_ETHUSD_20240907
["timestamp","ask_amount","ask_price","bid_price","bid_amount"]
[1725708784675,1.55915458,2293.1,2293.0,4.36095]
[1725708784877,2.10915458,2293.1,2293.0,4.36095]
[1725708792306,2.6082983,2293.1,2292.9,8.72239]
[1725708792612,3.0482,2293.0,2292.9,4.36119]
[1725708794302,3.0482,2293.0,2292.9,4.46752245]
[1725708795386,2.75146463,2293.4,2293.2,4.36071]
[1725708795622,1.55915458,2293.3,2293.2,4.36071]
[1725708795801,2.75146463,2293.6,2293.5,4.36014]
[1725708795973,4.31061921,2293.6,2293.5,8.72028]
[1725708796179,1.55915458,2293.6,2293.5,8.82668964]
[1725708797181,5.24966463,2293.9,2293.6,4.35985]
[1725708797390,1.55915458,2293.7,2293.6,4.35985]
[1725708798003,3.74100159,2293.7,2293.6,4.35985]
[1725708798188,4.29100159,2293.7,2293.6,4.35985]
[1725708799756,4.29100159,2293.7,2293.6,8.7198]
[1725708801613,4.29100159,2293.7,2293.6,4.35985]
[1725708802112,6.58257136,2293.7,2293.6,4.35985]
[1725708802314,4.29100159,2293.7,2293.6,4.35985]
[1725708805886,2.29060289,2293.9,2293.8,13.07871]
[1725708806110,6.03160448,2294.2,2294.1,8.718]
[1725708806305,3.74100159,2294.2,2294.1,8.718]
[1725708806920,4.19745049,2294.2,2294.1,8.718]
[1725708811010,4.19745049,2294.2,2294.1,8.82266035]
[1725708812396,4.74745049,2294.2,2294.1,4.46366035]
[1725708813899,4.19745049,2294.2,2294.1,8.82266035]
[1725708817234,4.19745049,2294.2,2294.1,4.46366035]
[1725708817547,4.19745049,2294.2,2294.1,8.82266035]
[1725708817719,4.19745049,2294.2,2294.1,10.14084439]
[1725708820050,2.01416855,2294.2,2294.1,10.14084439]
[1725708821629,2.01416855,2294.2,2294.1,8.82266035]
[1725708822867,2.01416855,2294.2,2294.1,9.12086035]
[1725708825645,2.01416855,2294.2,2294.1,13.47986035]
[1725708825945,0.4564489,2294.2,2294.1,13.47986035]
[1725708826564,0.4564489,2294.2,2294.1,17.83886035]
[1725708826886,0.4564489,2294.2,2294.1,19.62274639]
[1725708827027,0.4564489,2294.2,2294.1,15.26374639]
[1725708827433,0.4564489,2294.2,2294.1,19.62274639]
[1725708827677,0.4564489,2294.2,2294.1,15.26374639]
[1725708828237,0.4564489,2294.2,2294.1,19.62274639]
[1725708828477,6.27,2294.8,2294.1,19.62274639]
[1725708828478,6.27,2294.8,2294.7,13.37178]
[1725708828639,1.55771965,2294.9,2294.8,8.71534]
[1725708828840,1.55771965,2294.9,2294.8,13.07301]
[1725708829136,1.55771965,2294.9,2294.8,13.1764246]
[1725708829896,1.55771965,2294.9,2294.8,8.8187546]
[1725708830105,3.73611841,2295.0,2294.9,8.71496]
[1725708830457,3.73611841,2295.0,2294.9,8.81836369]
[1725708837207,3.73611841,2295.0,2294.9,4.46088369]
[1725708837636,3.73611841,2295.0,2294.9,8.81836369]
[1725708839743,3.73611841,2295.0,2294.9,13.17584369]
[1725708839902,3.73611841,2295.0,2294.9,14.95903106]
[1725708840536,3.73611841,2295.0,2294.9,10.60155106]
[1725708841315,3.73611841,2295.0,2294.9,8.81836369]
[1725708848974,3.73611841,2295.0,2294.9,0.10340369]
[1725708849177,6.20531841,2295.0,2294.9,0.10340369]
[1725708849473,6.75531841,2295.0,2294.9,0.10340369]
[1725708850073,4.57628787,2295.0,2294.7,8.71553]
[1725708850277,1.55708787,2294.8,2294.7,4.35776]
[1725708850430,2.10708787,2294.8,2294.6,4.35796]
[1725708850634,1.55708787,2294.7,2294.6,4.35796]
[1725708850979,4.02628787,2294.7,2294.4,4.35837]
[1725708851276,4.02628787,2294.7,2294.4,4.35834]
[1725708851277,1.55708787,2294.5,2294.4,4.35834]
[1725708851636,2.10708787,2294.5,2294.4,4.35834]
[1725708851975,4.57628787,2294.5,2294.4,4.35843]
[1725708854073,6.7572383,2294.5,2294.4,4.35843]
[1725708855573,6.7572383,2294.5,2294.4,4.46139414]
[1725708858063,6.7572383,2294.5,2294.4,0.10296414]
[1725708858269,6.7572383,2294.5,2293.7,4.35971]
[1725708858270,0.60896354,2294.4,2293.7,4.35971]
[1725708858487,3.7380383,2293.8,2293.7,4.35971]
[1725708858987,3.7380383,2293.8,2293.6,4.35985]
[1725708859287,3.7380383,2293.8,2293.7,4.35976]
[1725708859450,4.2880383,2293.8,2293.7,4.35976]
[1725708861913,4.74457089,2293.8,2293.7,4.35976]
[1725708863733,4.74457089,2293.8,2293.6,8.71969]
[1725708863938,4.74457089,2293.8,2293.7,4.35976]
[1725708865755,4.74457089,2293.8,2293.7,4.45073858]
[1725708867209,4.2880383,2293.8,2293.7,4.45073858]
[1725708868539,3.7380383,2293.8,2293.7,8.81049858]
[1725708868741,2.3382,2294.2,2293.7,8.81049858]
[1725708868742,2.3382,2294.2,2293.9,4.35929]
[1725708868927,3.7380383,2294.0,2293.9,4.35929]
[1725708870532,3.7380383,2294.0,2293.9,4.45099785]
[1725708874343,3.7380383,2294.0,2293.9,8.81037785]
[1725708875603,3.7380383,2294.0,2293.9,4.45099785]
[1725708875908,1.5581274,2294.0,2293.9,8.81037785]
[1725708876921,1.5581274,2294.0,2293.9,4.45099785]
[1725708882121,4.37264014,2294.0,2293.9,4.45099785]
[1725708882738,1.5581274,2294.0,2293.9,4.45099785]
[1725708883056,0.45655861,2294.3,2294.0,4.35918]
[1725708883220,1.5581274,2294.1,2294.0,4.35918]
[1725708883421,2.1081274,2294.1,2294.0,4.45052505]
[1725708884458,1.5581274,2294.1,2294.0,4.45052505]
[1725708896384,2.01463494,2294.1,2294.0,4.45052505]
[1725708898184,2.01463494,2294.1,2294.0,0.09134505]
[1725708898388,2.01463494,2294.1,2294.0,4.45053505]
[1725708900649,0.45650754,2294.1,2294.0,14.43527452]
[1725708900975,0.45650754,2294.1,2294.0,17.91348601]
[1725708901162,0.45650754,2294.1,2294.0,22.14788933]
[1725708902510,0.45650754,2294.1,2294.0,15.07300392]
[1725708903109,0.45650754,2294.1,2294.0,17.35098233]
[1725708903304,0.45650754,2294.1,2294.0,19.79457855]
[1725708903483,0.45650754,2294.1,2294.0,24.15376855]
[1725708903911,6.27,2294.8,2294.0,24.15376855]
[1725708903912,7.8281274,2294.8,2294.7,9.01392]
[1725708904119,1.5581274,2295.0,2294.8,4.35767]
[1725708904411,0.45642983,2294.9,2294.8,8.8024839]
[1725708904716,1.5581274,2295.0,2294.9,8.71496]
[1725708905965,3.73557118,2295.1,2295.0,4.3571]
[1725708906209,0.4564109,2295.2,2295.1,4.3571]
[1725708906410,4.19198208,2295.2,2295.1,4.3571]
[1725708906625,0.4564109,2295.2,2295.1,8.7142]
[1725708914339,2.7792109,2295.2,2295.1,4.3571]
[1725708915308,0.4564109,2295.2,2295.1,4.3571]
[1725708915725,0.4564109,2295.2,2295.1,4.44579883]
[1725708917555,0.4564109,2295.2,2295.1,8.80289883]
[1725708922767,0.4564109,2295.2,2295.1,4.44579883]
[1725708923263,0.4564109,2295.2,2295.1,8.80289883]
[1725708925845,0.4564109,2295.2,2295.1,4.44579883]
[1725708926046,0.4564109,2295.2,2295.1,8.80289883]
[1725708928049,2.01282877,2295.2,2295.1,8.80289883]
[1725708931958,2.01282877,2295.2,2295.1,8.9639064]
[1725708940269,0.4564109,2295.2,2295.1,10.32586204]
[1725708940496,0.4564109,2295.2,2295.1,14.98116204]
[1725708940697,2.01282877,2295.2,2295.1,14.98116204]
[1725708941189,2.01282877,2295.2,2295.1,10.62406204]
[1725708941394,2.01282877,2295.2,2295.1,14.98116204]
[1725708942201,2.01282877,2295.2,2295.1,14.68296204]
[1725708943362,2.01282877,2295.2,2295.1,10.32586204]
[1725708943972,2.01282877,2295.2,2295.1,14.68296204]
[1725708949115,2.01282877,2295.2,2295.1,18.6144137]
[1725708949418,2.01282877,2295.2,2295.1,18.47782342]
[1725708949622,2.01282877,2295.2,2295.1,19.52896426]
[1725708949930,2.01282877,2295.2,2295.1,18.47782342]
[1725708952583,2.01282877,2295.2,2295.1,18.47791695]
[1725708952783,2.01282877,2295.2,2295.1,16.20091708]
[1725708953029,2.01282877,2295.2,2295.1,18.47789278]
[1725708953318,2.01282877,2295.2,2295.1,16.20091708]
[1725708954384,2.01282877,2295.2,2295.1,16.20094311]
[1725708955405,2.01282877,2295.2,2295.1,10.32586204]
[1725708955608,2.01282877,2295.2,2295.1,16.20095047]
[1725708955926,2.01282877,2295.2,2295.1,16.20096138]
[1725708956288,2.01282877,2295.2,2295.1,16.20096147]
[1725708956620,2.01282877,2295.2,2295.1,14.68296204]
[1725708956821,2.01282877,2295.2,2295.1,10.32586204]
[1725708957829,2.01282877,2295.2,2295.1,8.9639064]
[1725708958037,4.28752877,2295.2,2295.1,4.6068064]
[1725708961308,0.4564109,2295.2,2295.1,4.6068064]
[1725708961526,0.4564109,2295.2,2295.1,13.40813553]
[1725708961756,0.4564109,2295.2,2295.1,15.21451008]
[1725708961903,0.4564109,2295.2,2295.1,16.73245681]
[1725708962225,0.4564109,2295.2,2295.1,15.21451008]
[1725708964428,0.4564109,2295.2,2295.1,10.77028095]
[1725708964739,0.4564109,2295.2,2295.1,15.12738095]
[1725708966325,0.4564109,2295.2,2295.1,16.6453498]
[1725708966503,0.4564109,2295.2,2295.1,21.3006498]
[1725708966944,0.4564109,2295.2,2295.1,16.9435498]
[1725708967140,0.4564109,2295.2,2295.1,21.3006498]
[1725708967744,0.4564109,2295.2,2295.1,23.57749562]
[1725708967927,0.4564109,2295.2,2295.1,23.71410361]
[1725708968127,0.4564109,2295.2,2295.1,23.7140137]
[1725708970523,0.4564109,2295.2,2295.1,23.57742821]
[1725708970726,0.4564109,2295.2,2295.1,23.71401413]
[1725708973257,0.4564109,2295.2,2295.1,19.35691413]
[1725708973555,0.4564109,2295.2,2295.1,23.71401413]
[1725708973847,0.4564109,2295.2,2295.1,19.35691632]
[1725708974057,0.4564109,2295.2,2295.1,18.92219311]
[1725708974240,0.4564109,2295.2,2295.1,15.12738095]
[1725708975659,0.4564109,2295.2,2295.1,16.64532177]
[1725708975864,0.4564109,2295.2,2295.1,15.12738095]
[1725708977360,0.4564109,2295.2,2295.1,16.64534213]
[1725708977564,0.4564109,2295.2,2295.1,18.92221338]
[1725708977859,0.4564109,2295.2,2295.1,16.64534213]
[1725708978730,0.4564109,2295.2,2295.1,18.92229014]
[1725708978930,0.4564109,2295.2,2295.1,18.92221932]
[1725708979225,0.4564109,2295.2,2295.1,15.12738095]
[1725708979459,0.4564109,2295.2,2295.1,16.64536758]
[1725708979853,0.4564109,2295.2,2295.1,16.6453303]
[1725708981123,0.4564109,2295.2,2295.1,18.92224861]
[1725708981362,0.4564109,2295.2,2295.1,16.6453303]
[1725708981777,0.4564109,2295.2,2295.1,18.92226978]
[1725708983163,0.4564109,2295.2,2295.1,23.27936978]
[1725708984483,0.4564109,2295.2,2295.1,18.92226978]
[1725708984678,0.4564109,2295.2,2295.1,16.6453303]
[1725708984886,0.4564109,2295.2,2295.1,18.92229361]
[1725708985191,0.4564109,2295.2,2295.1,16.6453303]
[1725708985475,0.4564109,2295.2,2295.1,18.92230309]
[1725708985646,0.4564109,2295.2,2295.1,18.9222981]
[1725708985976,0.4564109,2295.2,2295.1,18.92229796]
[1725708986339,2.4048,2295.4,2295.3,13.07016]
[1725708986563,2.4048,2295.4,2295.3,14.9622758]
[1725708986767,2.4048,2295.4,2295.3,15.20795493]
[1725708987746,2.01287085,2295.5,2295.4,13.06959]
[1725708988092,2.01287085,2295.5,2295.4,13.31525109]
[1725708991283,2.01287085,2295.5,2295.4,8.95872109]
[1725708991497,4.41767085,2295.5,2295.4,8.95872109]
[1725708992959,2.01287085,2295.5,2295.4,8.95872109]
[1725708993280,2.01287085,2295.5,2295.4,10.54775803]
[1725708994194,2.01287085,2295.5,2295.4,14.90428803]
[1725708994980,2.01287085,2295.5,2295.4,10.54775803]
[1725708995582,2.01287085,2295.5,2295.4,14.90428803]
[1725708996089,0.45645298,2295.5,2295.4,14.90428803]
[1725708996452,0.45645298,2295.5,2295.4,10.54775803]
[1725708996887,0.45645298,2295.5,2295.4,14.90428803]
[1725708997089,0.45645298,2295.5,2295.4,10.54775803]
[1725708997291,0.45645298,2295.5,2295.4,14.90428803]
[1725708998691,0.45645298,2295.5,2295.4,16.42209014]
[1725708999083,0.45645298,2295.5,2295.4,16.42207583]
[1725709000244,0.45645298,2295.5,2295.4,14.90428803]
[1725709000396,0.45645298,2295.5,2295.4,16.42207594]
[1725709000577,0.45645298,2295.5,2295.4,14.90428803]
[1725709000909,0.45645298,2295.5,2295.4,19.26081803]
[1725709001111,0.45645298,2295.5,2295.4,23.05515622]
[1725709001312,0.45645298,2295.5,2295.4,20.77860505]
[1725709001816,0.45645298,2295.5,2295.4,23.05517661]
[1725709002011,0.45645298,2295.5,2295.4,20.77860505]
[1725709002187,0.45645298,2295.5,2295.4,16.42207505]
[1725709002389,0.45645298,2295.5,2295.4,16.42204413]
[1725709002602,0.45645298,2295.5,2295.4,14.90428803]
[1725709004478,0.45645298,2295.5,2295.4,16.42207024]
[1725709005190,0.45645298,2295.5,2295.4,16.42207399]
[1725709005913,0.45645298,2295.5,2295.4,16.72027399]
[1725709006115,0.45645298,2295.5,2295.4,23.35347705]
[1725709006292,0.45645298,2295.5,2295.4,19.91149919]
[1725709006535,0.45645298,2295.5,2295.4,18.99694705]
[1725709007146,0.45645298,2295.5,2295.4,19.91149919]
[1725709007503,0.45645298,2295.5,2295.4,18.69874705]
[1725709009249,0.45645298,2295.5,2295.4,14.90428803]
[1725709009423,0.45645298,2295.5,2295.4,18.69871614]
[1725709010298,4.37617085,2295.5,2295.4,8.95872109]
[1725709015666,2.01287085,2295.5,2295.4,8.95872109]
[1725709016369,2.01287085,2295.5,2295.4,13.31525109]
[1725709016569,0.45645298,2295.5,2295.4,13.31525109]
[1725709016731,0.45645298,2295.5,2295.4,14.96591107]
[1725709016929,0.45645298,2295.5,2295.4,16.48367911]
[1725709017873,0.45645298,2295.5,2295.4,10.60938107]
[1725709018162,0.45645298,2295.5,2295.4,14.96591107]
[1725709018469,0.45645298,2295.5,2295.4,16.48376174]
[1725709019360,0.45645298,2295.5,2295.4,16.48371144]
[1725709019561,0.45645298,2295.5,2295.4,14.96591107]
[1725709020225,0.45645298,2295.5,2295.4,16.4837092]
[1725709020925,0.45645298,2295.5,2295.4,16.48369772]
[1725709021166,0.45645298,2295.5,2295.4,19.05860504]
[1725709021335,0.45645298,2295.5,2295.4,16.78189772]
[1725709021546,0.45645298,2295.5,2295.4,19.05856286]
[1725709021770,0.45645298,2295.5,2295.4,16.78189772]
[1725709021971,0.45645298,2295.5,2295.4,19.05857973]
[1725709022330,0.45645298,2295.5,2295.4,19.05853087]
[1725709022535,0.45645298,2295.5,2295.4,16.78189772]
[1725709022736,0.45645298,2295.5,2295.4,19.0585714]
[1725709023136,0.45645298,2295.5,2295.4,19.05854192]
[1725709023403,0.45645298,2295.5,2295.4,19.05856248]
[1725709025125,0.45645298,2295.5,2295.4,23.41509248]
[1725709025843,0.45645298,2295.5,2295.4,19.05856248]
[1725709026678,0.45645298,2295.5,2295.4,23.41509248]
[1725709027359,0.45645298,2295.5,2295.4,19.05856248]
[1725709027571,2.4619,2296.0,2295.9,8.71118]
[1725709027729,4.01831787,2296.0,2295.9,10.017862]
[1725709027934,4.01831787,2296.0,2295.9,10.25192533]
[1725709028134,4.47472821,2296.0,2295.9,10.25192533]
[1725709028871,2.91831034,2296.0,2295.9,10.25192533]
[1725709029034,4.47472821,2296.0,2295.9,10.25192533]
[1725709032188,4.47472821,2296.0,2295.9,14.60751533]
[1725709032189,0.45641034,2296.0,2295.9,14.60751533]
[1725709033090,2.01282821,2296.0,2295.9,10.25192533]
[1725709033274,4.29522821,2296.0,2295.9,8.94524333]
[1725709036906,0.45641034,2296.0,2295.9,8.94524333]
[1725709037114,2.01282821,2296.0,2295.9,8.94524333]
[1725709040068,4.29522821,2296.0,2295.9,8.94524333]
[1725709046611,2.73881034,2296.0,2295.9,8.94524333]
[1725709046784,2.01282821,2296.0,2295.9,10.27534466]
[1725709047919,2.01282821,2296.0,2295.9,8.94524333]
[1725709051876,4.29522821,2296.0,2295.9,8.94524333]
[1725709052788,2.01282821,2296.0,2295.9,8.94524333]
[1725709055608,2.01282821,2296.0,2295.9,13.30083333]
[1725709057279,2.01282821,2296.0,2295.9,13.59903333]
[1725709057515,2.01282821,2296.0,2295.9,15.18656743]
[1725709058289,0.45641034,2296.0,2295.9,15.18656743]
[1725709058988,0.45641034,2296.0,2295.9,16.70399206]
[1725709059191,0.45641034,2296.0,2295.9,16.70400801]
[1725709059386,0.45641034,2296.0,2295.9,15.18656743]
[1725709059588,0.45641034,2296.0,2295.9,16.70401516]
[1725709059819,0.45641034,2296.0,2295.9,16.70399512]
[1725709060118,0.45641034,2296.0,2295.9,15.18656743]
[1725709060618,2.4407,2296.3,2296.1,4.35521]
[1725709060789,2.4407,2296.3,2295.9,7.69462233]
[1725709060790,1.55641787,2296.2,2295.9,4.58965333]
[1725709061003,2.4407,2296.3,2296.2,4.58859259]
[1725709061306,2.4407,2296.3,2296.2,4.35502]
[1725709061516,2.4407,2296.3,2296.2,4.58859259]
[1725709061885,2.4407,2296.3,2296.2,8.94361259]
[1725709062680,3.99711787,2296.3,2296.2,8.94361259]
[1725709066595,3.99711787,2296.3,2296.2,9.83797385]
[1725709066596,1.55641787,2296.3,2296.2,9.83797385]
[1725709066800,1.55641787,2296.3,2296.2,8.94361259]
[1725709069651,2.89708355,2296.5,2296.4,4.35464]
[1725709070019,2.89708355,2296.5,2296.4,4.58806263]
[1725709070824,2.4407,2296.5,2296.4,4.58806263]
[1725709074041,2.4407,2296.5,2296.4,4.35464]
[1725709074242,3.99711787,2296.5,2296.4,4.58805314]
[1725709074431,3.99711787,2296.5,2296.4,4.35464]
[1725709074633,3.99711787,2296.5,2296.4,4.58805314]
[1725709074829,3.99711787,2296.5,2296.4,4.35464]
[1725709075163,3.99711787,2296.5,2296.4,4.58805314]
[1725709075957,3.99711787,2296.5,2296.4,4.35464]
[1725709076163,3.99711787,2296.5,2296.4,4.58801517]
[1725709076345,3.99711787,2296.5,2296.4,4.35464]
[1725709076525,3.99711787,2296.5,2296.4,4.58801517]
[1725709077268,3.99711787,2296.5,2296.4,4.35464]
[1725709077559,3.99711787,2296.5,2296.4,4.58801517]
[1725709077729,3.99711787,2296.5,2296.4,4.35464]
[1725709077930,3.99711787,2296.5,2296.4,4.58801517]
[1725709078132,3.99711787,2296.5,2296.4,4.35464]
[1725709078333,3.99711787,2296.5,2296.4,4.58801517]
[1725709078542,3.99711787,2296.5,2296.4,4.35464]
[1725709079957,3.99711787,2296.5,2296.4,4.58794874]
[1725709080135,9.62665805,2296.9,2296.7,8.70814]
[1725709080136,2.4501,2296.8,2296.7,8.70814]
[1725709080460,1.55641787,2296.8,2296.7,8.94139466]
[1725709080668,4.00651787,2296.8,2296.7,8.94139466]
[1725709080957,5.03416966,2296.8,2296.7,0.23325466]
[1725709081122,5.03416966,2296.8,2296.5,4.35429]
[1725709081325,1.55641787,2296.6,2296.5,4.35429]
[1725709081848,4.00651787,2296.6,2296.4,4.35464]
[1725709082151,1.55641787,2296.5,2296.4,4.35464]
[1725709083051,2.4501,2296.7,2296.6,4.35426]
[1725709083374,4.00651787,2296.7,2296.5,4.35432]
[1725709084363,4.00651787,2296.7,2296.5,8.70866]
[1725709084880,4.00651787,2296.7,2296.6,4.35426]
[1725709085686,4.00651787,2296.7,2296.5,8.70867]
[1725709086209,4.00651787,2296.7,2296.6,4.35426]
[1725709086393,4.00651787,2296.7,2296.5,4.35432]
[1725709087423,4.00651787,2296.7,2296.6,4.35426]
[1725709087623,4.55651787,2296.7,2296.6,4.35426]
[1725709088419,1.55641787,2296.7,2296.6,4.35426]
[1725709088574,1.55641787,2296.7,2296.6,8.70852]
[1725709089807,1.55641787,2296.7,2296.6,4.35426]
[1725709090124,2.01796601,2296.7,2296.6,4.35426]
[1725709090413,1.55641787,2296.7,2296.6,4.35426]
[1725709094125,3.90371787,2296.7,2296.6,4.35426]
[1725709094322,2.3473,2296.6,2296.5,4.35433]
[1725709095143,2.95626354,2296.6,2296.3,4.3547]
[1725709095308,1.55641787,2296.4,2296.3,4.3547]
[1725709095712,1.55641787,2296.4,2296.3,4.58760923]
[1725709098599,3.90371787,2296.4,2296.3,4.58760923]
[1725709103334,2.3473,2296.4,2296.3,4.58760923]
[1725709103536,2.3473,2296.7,2296.4,4.3546]
[1725709103740,2.29041296,2296.8,2296.6,4.35426]
[1725709103939,2.29041296,2296.8,2296.6,8.70843]
[1725709104174,5.2466765,2296.9,2296.7,0.23324515]
[1725709104385,0.55,2296.8,2296.7,0.23324515]
[1725709105260,2.10641787,2296.8,2296.7,0.23324515]
[1725709107552,4.39683083,2296.8,2296.7,0.23324515]
[1725709107756,5.00579437,2296.8,2296.7,0.23324515]
[1725709108067,5.00574359,2296.8,2296.7,0.23324515]
[1725709109460,5.06268141,2296.8,2296.5,4.35443]
[1725709109756,1.55641787,2296.6,2296.5,4.35443]
[1725709109964,1.55641787,2296.6,2295.8,5.26942705]
[1725709110183,1.55641787,2296.2,2296.1,4.35521]
[1725709110557,1.55641787,2296.2,2296.1,8.71042]
[1725709110758,1.55641787,2296.2,2296.1,8.94377333]
[1725709113800,1.55641787,2296.2,2296.1,9.24197333]
[1725709114011,1.55641787,2296.2,2296.1,10.60170466]
[1725709116021,1.55641787,2296.2,2296.1,8.94377333]
[1725709116413,2.01279372,2296.2,2296.1,8.94377333]
[1725709128521,2.01279372,2296.2,2296.1,13.29898333]
[1725709131136,2.01279372,2296.2,2296.1,13.59718333]
[1725709131964,0.45637585,2296.2,2296.1,13.59718333]
[1725709132173,2.01279372,2296.2,2296.1,15.19817095]
[1725709132371,0.45637585,2296.2,2296.1,21.07078297]
[1725709132534,8.56015486,2296.8,2296.7,4.35407]
[1725709132535,6.27,2296.8,2296.7,4.35407]
[1725709132737,6.27,2296.8,2296.7,14.04993912]
[1725709133055,3.2062168,2297.7,2297.3,8.70586]
[1725709133056,6.27,2297.4,2297.3,8.70586]
[1725709133262,2.8991184,2297.9,2297.7,4.35199]
[1725709133445,2.16538141,2297.8,2297.5,4.35243]
[1725709133777,2.16538141,2297.8,2297.7,4.35217]
[1725709133778,0.60896354,2297.8,2297.7,4.35217]
[1725709134139,0.60896354,2297.8,2297.6,4.35222]
[1725709134336,2.16538141,2297.8,2297.6,4.35222]
[1725709134734,1.55641787,2297.8,2297.7,4.35217]
[1725709134968,1.55641787,2297.8,2297.6,8.70443]
[1725709135145,1.55641787,2297.8,2297.6,4.35221]
[1725709135452,1.55641787,2297.8,2297.4,4.35266]
[1725709135453,3.50444717,2297.7,2297.5,4.35253]
[1725709135654,0.31338761,2297.8,2297.6,4.35236]
[1725709135859,1.55641787,2297.7,2297.4,8.70528]
[1725709136040,1.55641787,2297.7,2297.0,4.35348]
[1725709136041,0.31338761,2297.8,2297.5,4.35251]
[1725709136379,3.72809921,2297.6,2297.5,8.70506]
[1725709137233,3.72809921,2297.6,2297.5,4.35251]
[1725709137234,4.27861617,2297.6,2297.5,4.35251]
[1725709138378,4.29872942,2297.6,2297.2,4.35304]
[1725709138669,4.29872942,2297.6,2297.0,4.35338]
[1725709138670,3.72809921,2297.3,2297.0,4.35338]
[1725709138879,2.3833,2297.4,2297.0,8.70688]
[1725709138880,3.72809921,2297.1,2297.0,8.70688]
[1725709139877,3.72809921,2297.3,2297.2,4.35301]
[1725709140033,3.72809921,2297.3,2297.2,8.70613]
[1725709140462,3.72809921,2297.3,2297.2,4.35301]
[1725709140659,3.72809921,2297.3,2297.2,4.58217669]
[1725709140660,6.48420913,2297.3,2297.2,4.58217669]
[1725709141381,9.48420913,2297.3,2297.2,4.58217669]
[1725709141587,9.48420913,2297.3,2297.2,0.22916669]
[1725709141793,2.3833,2297.2,2296.6,4.35416]
[1725709141940,3.72809921,2296.7,2296.4,4.35454]
[1725709142155,3.72809921,2296.5,2296.4,4.35454]
[1725709142678,6.72809921,2296.5,2296.0,4.3553]
[1725709142839,3.72809921,2296.1,2296.0,4.3553]
[1725709143243,6.72809921,2296.1,2296.0,4.3553]
[1725709143500,7.63923913,2296.1,2295.8,4.35562]
[1725709143776,3.72809921,2295.9,2295.8,4.35562]
[1725709143954,4.27809921,2295.9,2295.8,4.35562]
[1725709144148,7.27809921,2295.9,2295.8,4.35562]
[1725709144355,3.72809921,2295.9,2295.8,4.35562]
[1725709144569,3.0,2296.4,2296.2,4.3549]
[1725709144753,2.3833,2296.7,2296.1,4.35509]
[1725709144754,3.72809921,2296.3,2296.1,4.35509]
[1725709144961,6.72809921,2296.2,2296.1,4.35509]
[1725709148159,6.72809921,2296.2,2296.1,8.7103]
[1725709148877,3.72809921,2296.4,2296.3,8.70959]
[1725709149251,3.72809921,2296.4,2296.3,8.92523352]
[1725709151981,7.27809921,2296.4,2296.3,0.21564352]
[1725709152191,4.27809921,2296.4,2296.3,0.21564352]
[1725709152484,7.69423913,2296.4,2295.7,4.35592]
[1725709152689,6.72809921,2296.4,2296.3,4.57047352]
[1725709153049,6.72809921,2296.4,2296.3,4.35483]
[1725709153286,6.72809921,2296.4,2296.3,4.57047352]
[1725709153490,7.40090913,2296.4,2296.3,4.57047352]
[1725709154149,6.72809921,2296.4,2296.3,4.57047352]
[1725709155769,6.72809921,2296.4,2296.3,0.21564352]
[1725709155954,9.57949921,2296.4,2296.3,0.21564352]
[1725709156144,12.70064638,2296.4,2295.8,4.35565]
[1725709156348,3.72809921,2295.9,2295.8,4.35565]
[1725709156849,3.72809921,2295.9,2295.7,4.35595]
[1725709157054,3.72809921,2295.8,2294.8,0.2982]
[1725709157251,3.72809921,2295.0,2294.3,4.35854]
[1725709157483,3.72809921,2295.0,2294.0,1.36784836]
[1725709157484,3.72809921,2294.4,2294.2,4.35865]
[1725709157694,3.72809921,2294.3,2294.2,4.35865]
[1725709157902,3.72809921,2294.3,2294.0,4.35906]
[1725709158081,3.72809921,2294.3,2294.0,8.71812]
[1725709158287,3.72809921,2294.3,2293.5,4.6583]
[1725709158288,3.72809921,2294.1,2293.8,4.35942]
[1725709158456,3.72809921,2293.9,2293.8,4.35942]
[1725709158659,3.72809921,2293.9,2293.6,4.35987]
[1725709158967,3.0,2294.0,2293.5,4.36013]
[1725709158968,3.72809921,2293.7,2293.5,4.36013]
[1725709159295,3.72809921,2293.6,2293.5,4.36013]
[1725709161296,3.72809921,2293.6,2293.5,8.72027]
[1725709161589,0.55,2293.8,2293.7,8.71951]
[1725709161590,3.72809921,2293.8,2293.7,8.71951]
[1725709161792,3.72809921,2293.8,2293.5,4.3601]
[1725709162014,4.9883145,2293.6,2293.5,4.3601]
[1725709162487,5.5383145,2293.6,2293.5,4.3601]
[1725709162692,5.5383145,2293.6,2293.4,4.3603]
[1725709163400,5.5383145,2293.6,2293.5,4.36014]
[1725709163758,0.55,2293.6,2293.5,4.36014]
[1725709164056,0.55,2293.7,2293.5,8.72015]
[1725709164254,0.55,2293.7,2293.5,4.36001]
[1725709164715,4.9883145,2293.8,2293.7,4.35976]
[1725709165024,8.5383145,2293.8,2293.7,4.35976]
[1725709165225,7.9883145,2293.8,2293.7,8.71952]
[1725709165513,4.9883145,2293.8,2293.7,8.71952]
[1725709167935,4.9883145,2293.8,2293.7,4.35976]
[1725709168281,5.5383145,2293.8,2293.7,4.35976]
[1725709169778,4.9883145,2293.8,2293.7,8.71952]
[1725709170780,7.9883145,2294.1,2294.0,4.35919]
[1725709170981,9.56728595,2294.1,2293.8,4.35941]
[1725709171212,0.55,2294.0,2293.8,4.35941]
[1725709171676,0.55,2294.0,2293.8,8.71886]
[1725709172120,0.55,2294.0,2293.9,4.35938]
[1725709172417,0.55,2294.0,2293.9,8.71876]
[1725709173193,0.55,2294.0,2293.9,4.35938]
[1725709173400,1.63397145,2294.0,2293.9,4.35938]
[1725709173595,0.55,2294.0,2293.9,4.35938]
[1725709175385,7.9883145,2294.1,2294.0,8.71838]
[1725709176429,5.44469275,2294.1,2294.0,8.71838]
[1725709177633,5.44469275,2294.1,2294.0,13.07757]
[1725709178188,5.44469275,2294.1,2294.0,8.71838]
[1725709181237,0.45637825,2294.1,2294.0,8.71838]
[1725709181408,0.45637825,2294.1,2294.0,13.07757]
[1725709181610,0.45637825,2294.1,2294.0,8.71838]
[1725709182025,4.19561888,2294.1,2294.0,8.71838]
[1725709182206,5.46518077,2294.1,2294.0,8.71838]
[1725709182408,4.74561888,2294.1,2294.0,8.71838]
[1725709185734,4.74561888,2294.1,2294.0,8.9214806]
[1725709191650,4.74561888,2294.1,2294.0,4.5622906]
[1725709191818,9.99991888,2294.1,2294.0,4.5622906]
[1725709193321,7.74561888,2294.1,2294.0,8.9214806]
[1725709193523,4.19561888,2294.1,2294.0,8.9214806]
[1725709195840,5.16518077,2294.1,2294.0,4.5622906]
[1725709196150,5.16518077,2294.1,2294.0,0.2031006]
[1725709196356,8.16518077,2294.1,2293.9,4.35934]
[1725709196582,6.0277,2294.0,2293.9,4.35934]
[1725709196879,7.17687299,2294.0,2293.7,4.35958]
[1725709197078,3.73924063,2293.8,2293.7,4.35958]
[1725709197236,4.28924063,2293.8,2293.7,4.35958]